fUSD/lending_fUSD_20260224
["ID","MTS","AMOUNT","RATE_DAILY","PERIOD"]
[406524926,1771909845230,-1503.05357398,0.00014795,2]
[406524927,1771909845239,-1501.938724,0.00014795,2]
[406524928,1771909845249,-743.50770149,0.00014821,2]
[406524929,1771909845259,-250.0,0.00014821,2]
[406524930,1771909845268,-257.5744131,0.00014821,2]
[406524931,1771909845277,-500.0,0.00014821,2]
[406524932,1771909845286,-500.0,0.00014821,2]
[406524933,1771909845295,-500.0,0.00014821,2]
[406524934,1771909845305,-500.0,0.00014821,2]
[406524935,1771909845314,-500.0,0.00014821,2]
[406524936,1771909845323,-500.0,0.00014821,2]
[406524937,1771909845332,-500.0,0.00014821,2]
[406524938,1771909845342,-500.0,0.00014821,2]
[406524939,1771909845351,-500.0,0.00014821,2]
[406524940,1771909845360,-500.0,0.00014821,2]
[406524941,1771909845369,-500.0,0.00014821,2]
[406524942,1771909845378,-736.0,0.0001485,2]
[406524943,1771909845387,-1847.79,0.00014853,2]
[406524944,1771909845396,-482.62299928,0.00014866,2]
[406524945,1771909845406,-489.47016033,0.00014875,2]
[406524946,1771909845415,-3514.50260423,0.00014875,2]
[406524947,1771909845424,-2009.91371605,0.00014875,2]
[406524948,1771909845434,-454.1749961,0.00014889,2]
[406524949,1771909845443,-176.18400318,0.000149,2]
[406524950,1771909845452,-500.0,0.00014912,2]
[406524951,1771909845461,-500.0,0.00014912,2]
[406524952,1771909845471,-500.0,0.00014912,2]
[406524953,1771909845480,-215.42973367,0.00014951,2]
[406524954,1771909845490,-332.56813844,0.0001496,2]
[406524955,1771909845498,-454.1749961,0.00015036,2]
[406524956,1771909845508,-900.0,0.00015068,2]
[406524957,1771909845517,-515.0,0.0001512,2]
[406524958,1771909845527,-173.87087054,0.00015176,2]
[406524959,1771909845536,-160.0,0.00015176,2]
[406524960,1771909845545,-454.1749961,0.00015183,2]
[406524961,1771909845554,-482.62299928,0.00015229,2]
[406524962,1771909845563,-1460.69898072,0.00015307,2]
[406524963,1771909845573,-2000.0,0.00015342,2]
[406524964,1771909845582,-771.01748645,0.00015369,2]
[406524965,1771909845591,-150.0,0.00015371,2]
[406524966,1771909845601,-5582.0,0.00015477,2]
[406524967,1771909845610,-500.0,0.00015586,2]
[406524968,1771909845619,-516.27,0.00015586,2]
[406524972,1771909845799,-516.27,0.00015586,2]
[406524974,1771909845809,-500.0,0.00015586,2]
[406524975,1771909845819,-500.0,0.00015586,2]
[406524976,1771909845828,-482.62299928,0.00015592,2]
[406524977,1771909845837,-4609.0,0.00015811,2]
[406524978,1771909845847,-796.51670996,0.0001589,2]
[406524979,1771909845857,-799.54513345,0.00015917,2]
[406524980,1771909845866,-482.62299928,0.00015954,2]
[406524981,1771909845875,-150.0,0.00016,2]
[406524982,1771909845885,-150.0,0.00016,2]
[406524985,1771909845894,-150.0,0.00016,2]
[406524987,1771909845903,-9999.99,0.00016116,2]
[406524989,1771909845913,-1460.69898072,0.00016171,2]
[406524990,1771909845921,-1252.0,0.00016226,2]
[406524993,1771909845931,-482.62299928,0.00016317,2]
[406524995,1771909845940,-150.65321488,0.00016384,5]
[406524996,1771909845950,-900.0,0.00016438,2]
[406524999,1771909845960,-20000.0,0.00016438,2]
[406525000,1771909845970,-829.12830338,0.00016465,2]
[406525002,1771909845979,-309.11765045,0.00016588,2]
[406525005,1771909845988,-500.0,0.00016619,2]
[406525006,1771909845998,-500.0,0.00016619,2]
[406525009,1771909846007,-500.0,0.00016619,2]
[406525011,1771909846017,-482.62299928,0.00016679,2]
[406525012,1771909846027,-150.0,0.000168,2]
[406525015,1771909846036,-397.15,0.00016806,2]
[406525017,1771909846046,-372.780142,0.00016808,2]
[406525019,1771909846055,-6623.03809716,0.00016951,2]
[406525021,1771909846064,-182.14,0.00017,2]
[406525023,1771909846073,-859.80605061,0.00017013,2]
[406525025,1771909846083,-150.0,0.0001702,2]
[406525027,1771909846091,-1460.69898072,0.00017036,2]
[406525029,1771909846100,-482.62299928,0.00017042,2]
[406525031,1771909846109,-507.72635797,0.0001712,5]
[406525033,1771909846117,-6453.0,0.00017392,2]
[406525035,1771909846126,-309.0,0.000174,2]
[406525037,1771909846135,-431.0,0.000174,2]
[406525039,1771909846143,-303.0,0.000174,2]
[406525041,1771909846152,-990.0,0.000174,2]
[406525043,1771909846160,-482.62299928,0.00017405,2]
[406525045,1771909846168,-168.0,0.00017441,2]
[406525047,1771909846177,-891.61887448,0.00017561,2]
[406525049,1771909846185,-1347.8924605,0.0001764,2]
[406525051,1771909846194,-220.62,0.00017677,2]
[406525053,1771909846205,-350.0,0.00017688,2]
[406525055,1771909846215,-200.0,0.000177,6]
[406525057,1771909846224,-515.0,0.00017715,4]
[406525059,1771909846233,-1640.0,0.00017738,2]
[406525061,1771909846242,-200.0,0.000178,6]
[406525063,1771909846252,-1224.85375011,0.00017808,2]
[406525065,1771909846263,-1224.85375011,0.00017808,2]
[406525067,1771909846271,-1224.85375011,0.00017808,2]
[406525068,1771909846283,-1224.85375011,0.00017808,2]
[406525071,1771909846292,-1224.85375011,0.00017808,2]
[406525073,1771909846302,-1224.85375011,0.00017808,2]
[406525074,1771909846311,-1224.85375011,0.00017808,2]
[406525076,1771909846320,-1224.85375011,0.00017808,2]
[406525079,1771909846330,-1224.85375011,0.00017808,2]
[406525080,1771909846339,-1224.85375011,0.00017808,2]
[406525083,1771909846349,-1224.85375011,0.00017808,2]
[406525084,1771909846358,-1224.85375011,0.00017808,2]
[406525086,1771909846367,-1224.85375011,0.00017808,2]
[406525087,1771909846376,-1224.85375011,0.00017808,2]
[406525089,1771909846385,-1224.85375011,0.00017808,2]
[406525091,1771909846394,-1224.85375011,0.00017808,2]
[406525093,1771909846404,-1224.85375011,0.00017808,2]
[406525095,1771909846414,-1224.85375011,0.00017808,2]
[406525097,1771909846424,-1224.85375011,0.00017808,2]
[406525099,1771909846433,-1224.85375011,0.00017808,2]
[406525101,1771909846443,-1224.85375011,0.00017808,2]
[406525103,1771909846452,-1884.70762221,0.00017808,2]
[406525105,1771909846462,-1884.70762221,0.00017808,2]
[406525107,1771909846471,-1884.70762221,0.00017808,2]
[406525109,1771909846480,-1884.70762221,0.00017808,2]
[406525111,1771909846490,-1884.70762221,0.00017808,2]
[406525113,1771909846499,-1884.70762221,0.00017808,2]
[406525115,1771909846509,-1884.70762221,0.00017808,2]
[406525117,1771909846518,-1884.70762221,0.00017808,2]
[406525119,1771909846528,-1884.70762221,0.00017808,2]
[406525120,1771909846537,-800.0,0.00017808,2]
[406525122,1771909846546,-500.0,0.00017829,2]
[406525124,1771909846556,-516.27,0.00017829,2]
[406525126,1771909846565,-500.0,0.00017829,2]
[406525128,1771909846574,-500.0,0.00017829,2]
[406525130,1771909846583,-458.59827018,0.00017829,2]
[406525132,1771909846593,-198521.73986779,0.0001783,2]
[406525134,1771909846602,-516.27,0.00017899,2]
[406525136,1771909846611,-516.27,0.00017899,2]
[406525138,1771909846620,-516.27,0.00017899,2]
[406525140,1771909846629,-516.27,0.00017899,2]
[406525142,1771909846639,-516.27860285,0.00017899,2]
[406525144,1771909846648,-297.73835632,0.000179,2]
[406525146,1771909846658,-25000.0,0.000179,3]
[406525148,1771909846666,-29186.5832,0.000179,2]
[406525149,1771909846675,-25000.0,0.000179,3]
[406525150,1771909846685,-332.56813844,0.000179,2]
[406525151,1771909846694,-200.0,0.000179,6]
[406525152,1771909846703,-4620.22579536,0.000179,3]
[406525153,1771909846712,-489.47016033,0.000179,2]
[406525154,1771909846721,-1460.69898072,0.000179,2]
[406525155,1771909846731,-3514.50260423,0.000179,2]
[406525156,1771909846741,-232.9084823,0.000179,2]
[406525157,1771909846750,-6591.0449179,0.00017909,2]
[406525158,1771909846761,-46425.1021935,0.00017909,2]
[406525159,1771909846770,-11217.4173104,0.00017909,2]
[406525160,1771909846780,-500.0,0.00017951,2]
[406525161,1771909846789,-500.0,0.00017951,2]
[406525162,1771909846799,-301.79248677,0.00017951,2]
[406525163,1771909846808,-500.0,0.00017951,2]
[406525164,1771909846818,-500.0,0.00017951,2]
[406525165,1771909846827,-155.12855329,0.00017951,2]
[406525166,1771909846837,-500.0,0.00017951,2]
[406525167,1771909846846,-500.0,0.00017951,2]
[406525168,1771909846856,-594.51155404,0.00017951,2]
[406525169,1771909846866,-500.0,0.00017982,2]
[406525170,1771909846875,-260.94010179,0.0001799,2]
[406525171,1771909846885,-815316.44444189,0.00018,2]
[406525172,1771909846894,-575848.66053479,0.00018,2]
[406525173,1771909846913,-2299.1,0.00018,2]
[406525174,1771909847413,-150.0,0.0001179,2]
[406525175,1771909847423,-578.04625164,0.00018,2]
[406525176,1771909847434,-7981.91631131,0.00018,2]
[406525177,1771909847445,-325.58015431,0.00018,2]
[406525178,1771909847455,-634.61611262,0.00018,2]
[406525179,1771909847466,-1071.18168082,0.00018,2]
[406525180,1771909847507,-887.1555738,0.00018,2]
[406525181,1771909847527,-26419.29320883,0.00014538,2]
[406525182,1771909847625,-127.16977723,0.00014538,2]
[406525183,1771909847633,-2009.91371605,0.000179,2]
[406525184,1771909847643,-2575.74248704,0.00018,2]
[406525185,1771909847654,-510.472,0.00018,2]
[406525186,1771909847828,-874.7649544,0.00018,2]
[406525187,1771910032762,-199.11,0.000108,2]
[406525189,1771910282133,300.0,0.00010799,2]
[406525190,1771910340825,-500.0,0.000108,2]
[406525191,1771910340852,-500.0,0.000108,2]
[406525192,1771910340878,-653.71723476,0.000108,2]
[406525193,1771910340905,-500.0,0.000108,2]
[406525194,1771910340932,-500.0,0.000108,2]
[406525201,1771910550657,500.0,0.000108,2]
[406525202,1771910556340,500.0,0.000108,2]
[406525203,1771910562666,-240.0,0.00011017,2]
[406525204,1771910577046,-4167.17,0.00011233,2]
[406525205,1771910585571,5531.0,0.000125,3]
[406525206,1771910616925,5531.0,0.000125,3]
[406525207,1771910650501,5531.0,0.000125,5]
[406525208,1771910650730,5531.0,0.000124,3]
[406525209,1771910682434,2186.78716794,0.000125,5]
[406525212,1771910752516,10000.01,9.95e-05,2]
[406525213,1771910752539,10000.01,9.95e-05,2]
[406525214,1771910752561,10000.01,9.95e-05,2]
[406525215,1771910752583,7248.59307843,9.95e-05,2]
[406525216,1771910760034,2751.41692157,8e-05,2]
[406525217,1771910760056,3465.88153986,8e-05,2]
[406525222,1771910809624,-171.869698,0.00011874,2]
[406525224,1771910870977,2317.9,0.00011738,2]
[406525231,1771910949852,150.0,0.00011513,2]
[406525233,1771911025402,4384.0,0.00012,3]
[406525246,1771911031675,-1525.88974738,0.00011948,2]
[406525249,1771911031735,-470.10725262,0.00011948,2]
[406525250,1771911031744,-21.26451876,0.00011977,2]
[406525251,1771911031755,-228.73548124,0.00011977,2]
[406525252,1771911031764,-241.16733245,0.00012005,2]
[406525253,1771911031776,-499.50294632,0.00012005,2]
[406525254,1771911031795,-1618.13972123,0.00012005,2]
[406525255,1771911031804,-166.66,0.00012035,2]
[406525256,1771911031813,-1200.0,0.00012099,2]
[406525257,1771911031823,-300.0,0.00012099,2]
[406525258,1771911031832,-4823.55054723,0.000121,5]
[406525259,1771911031852,-707.44945277,0.000121,5]
[406525260,1771911031861,-300.0,0.00012198,2]
[406525261,1771911031870,-300.0,0.00012198,2]
[406525262,1771911031879,-300.0,0.00012198,2]
[406525263,1771911031888,-600.35254723,0.00012199,2]
[406525264,1771911031911,-599.64745277,0.00012199,2]
[406525265,1771911031920,-912.93686295,0.000122,2]
[406525266,1771911031930,-166.66,0.00012289,2]
[406525267,1771911031938,-284.9132918,0.0001229,2]
[406525268,1771911031947,-150.0,0.00012298,2]
[406525269,1771911031956,-34716.00479004,0.00012299,2]
[406525270,1771911031965,-384.45849216,0.00012299,2]
[406525272,1771911031974,-18299.59793961,0.00012299,2]
[406525274,1771911031984,-7909.9984342,0.00012299,2]
[406525276,1771911031993,-1387279.46272523,0.000123,2]
[406525277,1771911032004,-194983.41401468,0.000123,2]
[406525278,1771911032015,-200743.66239985,0.000123,2]
[406525279,1771911032026,-207220.87429206,0.000123,2]
[406525280,1771911032037,-1254.41808677,0.000123,2]
[406525285,1771911037782,-489.1802496,0.0001229,2]
[406525286,1771911037793,-1177.4475513,0.0001229,2]
[406525287,1771911037803,-1508518.16848141,0.000123,2]
[406525288,1771911037813,-284.9132918,0.0001239,2]
[406525289,1771911037822,-1205.22,0.000124,2]
[406525290,1771911037831,-9999.99,0.000124,2]
[406525291,1771911037840,-1474.34,0.000124,2]
[406525292,1771911037849,-14047.33,0.000124,2]
[406525293,1771911037859,-330.83419776,0.00012435,2]
[406525294,1771911037868,-346.0,0.00012458,2]
[406525295,1771911037877,-29923.72439814,0.0001249,2]
[406525296,1771911037887,-151.0,0.00012493,2]
[406525297,1771911037896,-151.0,0.00012493,2]
[406525298,1771911037905,-202.29696668,0.00012493,2]
[406525299,1771911037914,-151.0,0.00012493,2]
[406525300,1771911037923,-151.0,0.00012493,2]
[406525301,1771911037932,-151.0,0.00012493,2]
[406525302,1771911037942,-151.0,0.00012493,2]
[406525303,1771911037951,-151.0,0.00012493,2]
[406525304,1771911037960,-500.0,0.00012493,2]
[406525305,1771911037970,-151.0,0.00012493,2]
[406525306,1771911037982,-500.0,0.00012493,2]
[406525308,1771911037991,-151.0,0.00012493,2]
[406525310,1771911038000,-500.0,0.00012493,2]
[406525312,1771911038009,-151.0,0.00012493,2]
[406525314,1771911038018,-500.0,0.00012493,2]
[406525316,1771911038027,-151.0,0.00012493,2]
[406525318,1771911038036,-500.0,0.00012493,2]
[406525320,1771911038046,-151.0,0.00012493,2]
[406525321,1771911038056,-500.0,0.00012493,2]
[406525323,1771911038066,-151.0,0.00012493,2]
[406525326,1771911038075,-500.0,0.00012493,2]
[406525328,1771911038084,-151.0,0.00012493,2]
[406525330,1771911038094,-500.0,0.00012493,2]
[406525332,1771911038103,-151.0,0.00012493,2]
[406525333,1771911038112,-500.0,0.00012493,2]
[406525336,1771911038121,-151.0,0.00012493,2]
[406525338,1771911038131,-500.0,0.00012493,2]
[406525339,1771911038141,-151.0,0.00012493,2]
[406525341,1771911038151,-500.0,0.00012493,2]
[406525344,1771911038160,-151.0,0.00012493,2]
[406525346,1771911038170,-151.0,0.00012493,2]
[406525348,1771911038179,-151.0,0.00012493,2]
[406525350,1771911038188,-151.0,0.00012493,2]
[406525351,1771911038197,-151.0,0.00012493,2]
[406525353,1771911038207,-151.0,0.00012493,2]
[406525355,1771911038217,-151.0,0.00012493,2]
[406525358,1771911038227,-151.0,0.00012493,2]
[406525359,1771911038239,-151.0,0.00012493,2]
[406525361,1771911038249,-151.0,0.00012493,2]
[406525364,1771911038265,-151.0,0.00012493,2]
[406525366,1771911038279,-151.0,0.00012493,2]
[406525368,1771911038289,-151.0,0.00012493,2]
[406525370,1771911038298,-151.0,0.00012493,2]
[406525372,1771911038307,-500.0,0.00012493,2]
[406525374,1771911038316,-1655.0,0.00012494,2]
[406525376,1771911038326,-23501.65294458,0.00012499,2]
[406525378,1771911038340,-299.99,0.00012499,2]
[406525380,1771911038350,-499.99,0.00012499,2]
[406525382,1771911038359,-3709.03,0.000125,2]
[406525384,1771911038368,-2986.76,0.000125,2]
[406525385,1771911038378,-150.99,0.000125,2]
[406525386,1771911038387,-999.99,0.000125,2]
[406525387,1771911038397,-9999.99,0.000125,2]
[406525388,1771911038406,-1543.16,0.000125,2]
[406525389,1771911038415,-4263.61,0.00012515,2]
[406525390,1771911038424,-1267.0,0.00012519,2]
[406525391,1771911038434,-9999.99,0.00012542,2]
[406525392,1771911038443,-3571.95,0.00012542,2]
[406525393,1771911038453,-81504.07,0.00012542,2]
[406525394,1771911038462,-9999.99,0.00012542,2]
[406525395,1771911038472,-150.99,0.00012542,2]
[406525396,1771911038486,-166.66,0.00012542,2]
[406525397,1771911038497,-882.0,0.00012544,2]
[406525398,1771911038507,-189.0,0.00012555,2]
[406525399,1771911038516,-1747.0,0.00012569,2]
[406525400,1771911038527,-336.0,0.0001258,2]
[406525401,1771911038537,-1834.0,0.00012594,2]
[406525402,1771911038547,-5919.05,0.00012599,2]
[406525403,1771911038557,-311.71,0.00012599,2]
[406525404,1771911038570,-349.89,0.00012599,2]
[406525405,1771911038580,-9999.99,0.00012599,2]
[406525406,1771911038589,-7225.78,0.00012674,2]
[406525407,1771911038599,-500.0,0.00012767,2]
[406525408,1771911038611,-600.98,0.00012777,2]
[406525409,1771911038621,-166.66,0.00012795,2]
[406525410,1771911038630,-34716.00478995,0.00012815,2]
[406525411,1771911038640,-18299.59793956,0.00012815,2]
[406525412,1771911038651,-1852.42,0.00012822,2]
[406525413,1771911038660,-217.17,0.00012852,2]
[406525414,1771911038670,-500.0,0.00012854,2]
[406525415,1771911038679,-912.93686295,0.00013014,2]
[406525416,1771911038689,-166.66,0.00013018,2]
[406525417,1771911038698,-500.0,0.00013041,2]
[406525418,1771911038708,-166.66,0.00013049,2]
[406525419,1771911038717,-506.41000984,0.00013073,2]
[406525420,1771911038727,-508.95319751,0.00013073,2]
[406525421,1771911038740,-500.0,0.00013073,2]
[406525422,1771911038750,-235.2,0.0001312,2]
[406525423,1771911038759,-500.0,0.0001312,2]
[406525424,1771911038769,-500.0,0.0001312,2]
[406525425,1771911038778,-500.0,0.0001312,2]
[406525426,1771911038788,-500.0,0.0001312,2]
[406525427,1771911038797,-500.0,0.0001312,2]
[406525428,1771911038807,-500.0,0.0001312,2]
[406525429,1771911038816,-796.74694451,0.0001312,2]
[406525430,1771911038827,-501.12265433,0.0001312,2]
[406525431,1771911038836,-670.0,0.0001312,2]
[406525432,1771911038846,-502.83737335,0.0001312,2]
[406525433,1771911038855,-500.0,0.0001312,2]
[406525434,1771911038865,-500.0,0.0001312,2]
[406525435,1771911038874,-500.0,0.0001312,2]
[406525436,1771911038884,-507.45253387,0.0001312,2]
[406525437,1771911038893,-500.0,0.0001312,2]
[406525438,1771911038902,-500.0,0.0001312,2]
[406525439,1771911038911,-154.12,0.00013128,2]
[406525440,1771911038920,-336.05,0.00013128,2]
[406525441,1771911038930,-6848.68,0.00013131,2]
[406525442,1771911038939,-250.0,0.00013142,2]
[406525443,1771911038950,-400.56990203,0.00013142,2]
[406525444,1771911038959,-250.0,0.00013142,2]
[406525445,1771911038969,-193.0,0.00013142,2]
[406525446,1771911038980,-5902.82837391,0.00013172,2]
[406525447,1771911038990,-422.01,0.00013225,2]
[406525448,1771911038999,-166.66,0.00013302,2]
[406525449,1771911039008,-1680.0,0.00013309,2]
[406525450,1771911039018,-500.0,0.00013315,2]
[406525451,1771911039028,-34716.00478995,0.00013331,2]
[406525452,1771911039037,-18299.59793956,0.00013331,2]
[406525453,1771911039047,-420.0,0.00013388,2]
[406525454,1771911039057,-420.0,0.00013388,2]
[406525455,1771911039067,-420.0,0.00013388,2]
[406525456,1771911039077,-255.0,0.00013393,2]
[406525457,1771911039088,-235.2,0.00013394,2]
[406525458,1771911039098,-166.66,0.00013448,2]
[406525459,1771911039108,-205.41277938,0.00013496,2]
[406525460,1771911039119,-14928.40764489,0.0001358,2]
[406525461,1771911039130,-500.0,0.00013588,2]
[406525462,1771911039141,-703.26392448,0.00013589,2]
[406525463,1771911039153,-1004.26277075,0.00013621,2]
[406525464,1771911039163,-235.2,0.00013668,2]
[406525465,1771911039172,-500.0,0.00013698,2]
[406525466,1771911039182,-500.0,0.00013698,2]
[406525467,1771911039192,-155.12855329,0.00013698,2]
[406525468,1771911039201,-500.0,0.00013698,2]
[406525469,1771911039211,-500.0,0.00013698,2]
[406525470,1771911039220,-594.51155404,0.00013698,2]
[406525471,1771911039233,-500.0,0.00013698,2]
[406525472,1771911039242,-500.0,0.00013698,2]
[406525473,1771911039252,-500.0,0.00013698,2]
[406525474,1771911039262,-500.0,0.00013698,2]
[406525475,1771911039271,-500.0,0.00013698,2]
[406525476,1771911039280,-597.62860285,0.00013698,2]
[406525477,1771911039289,-916.35022247,0.00013698,2]
[406525478,1771911039298,-406.59665691,0.00013699,2]
[406525479,1771911039309,-500.0,0.00013699,2]
[406525480,1771911039318,-169.4350314,0.00013699,2]
[406525481,1771911039327,-500.0,0.00013699,2]
[406525482,1771911039336,-304.38005979,0.00013699,2]
[406525483,1771911039345,-500.0,0.00013699,2]
[406525484,1771911039355,-168.61283304,0.00013699,2]
[406525485,1771911039363,-599.206441,0.00013699,2]
[406525486,1771911039372,-500.0,0.00013699,2]
[406525487,1771911039381,-193.71551848,0.00013699,2]
[406525488,1771911039390,-215.42973367,0.00013723,2]
[406525489,1771911039399,-150.0,0.00013797,2]
[406525490,1771911039408,-912.93686295,0.00013829,2]
[406525491,1771911039417,-34716.00478995,0.00013847,2]
[406525492,1771911039426,-18299.59793956,0.00013847,2]
[406525493,1771911039435,-166.66,0.00013878,2]
[406525494,1771911039443,-150.0,0.00013897,2]
[406525495,1771911039452,-235.2,0.00013942,2]
[406525496,1771911039462,-2877.42,0.00013946,2]
[406525497,1771911039471,-422.01,0.00013959,2]
[406525498,1771911039480,-150.0,0.00013997,2]
[406525499,1771911039489,-1020.71268233,0.0001406,2]
[406525500,1771911039498,-5997.0022,0.00014137,2]
[406525501,1771911039507,-500.0,0.00014146,2]
[406525502,1771911039517,-213.75439126,0.00014146,2]
[406525503,1771911039526,-500.0,0.00014146,2]
[406525504,1771911039535,-500.0,0.00014146,2]
[406525505,1771911039544,-290.1155594,0.00014146,2]
[406525506,1771911039553,-500.0,0.00014146,2]
[406525507,1771911039565,-500.0,0.00014146,2]
[406525508,1771911039577,-500.0,0.00014146,2]
[406525509,1771911039587,-476.31120532,0.00014146,2]
[406525510,1771911039596,-500.0,0.00014146,2]
[406525511,1771911039606,-500.0,0.00014146,2]
[406525512,1771911039615,-500.0,0.00014146,2]
[406525513,1771911039624,-500.0,0.00014146,2]
[406525514,1771911039634,-500.0,0.00014146,2]
[406525515,1771911039644,-500.0,0.00014146,2]
[406525516,1771911039653,-500.0,0.00014146,2]
[406525517,1771911039663,-500.0,0.00014146,2]
[406525518,1771911039672,-500.0,0.00014146,2]
[406525519,1771911039681,-500.0,0.00014146,2]
[406525520,1771911039690,-500.0,0.00014146,2]
[406525521,1771911039699,-500.0,0.00014146,2]
[406525523,1771911039708,-500.0,0.00014146,2]
[406525524,1771911039718,-500.0,0.00014146,2]
[406525525,1771911039727,-500.0,0.00014146,2]
[406525526,1771911039736,-500.0,0.00014146,2]
[406525527,1771911039745,-500.0,0.00014146,2]
[406525528,1771911039754,-500.0,0.00014146,2]
[406525529,1771911039763,-500.0,0.00014146,2]
[406525530,1771911039772,-500.0,0.00014146,2]
[406525531,1771911039781,-500.0,0.00014146,2]
[406525532,1771911039791,-500.0,0.00014146,2]
[406525533,1771911039800,-500.0,0.00014146,2]
[406525534,1771911039809,-500.0,0.00014146,2]
[406525536,1771911039818,-500.0,0.00014146,2]
[406525537,1771911039827,-500.0,0.00014146,2]
[406525538,1771911039836,-270.34281331,0.00014146,2]
[406525539,1771911039845,-500.0,0.00014146,2]
[406525540,1771911039854,-500.0,0.00014146,2]
[406525541,1771911039863,-500.0,0.00014146,2]
[406525542,1771911039872,-500.0,0.00014146,2]
[406525543,1771911039882,-500.0,0.00014146,2]
[406525544,1771911039891,-500.0,0.00014146,2]
[406525545,1771911039901,-500.0,0.00014146,2]
[406525546,1771911039911,-500.0,0.00014146,2]
[406525547,1771911039921,-500.0,0.00014146,2]
[406525548,1771911039930,-500.0,0.00014146,2]
[406525549,1771911039939,-500.0,0.00014146,2]
[406525550,1771911040156,-500.0,0.00014146,2]
[406525551,1771911040166,-500.0,0.00014146,2]
[406525552,1771911040175,-300.0,0.00014146,2]
[406525553,1771911040184,-500.0,0.00014146,2]
[406525554,1771911040193,-500.0,0.00014146,2]
[406525555,1771911040202,-464.68811137,0.00014146,2]
[406525556,1771911040211,-500.0,0.00014146,2]
[406525557,1771911040220,-500.0,0.00014146,2]
[406525558,1771911040230,-231.89821871,0.00014146,2]
[406525559,1771911040239,-500.0,0.00014146,2]
[406525560,1771911040248,-500.0,0.00014146,2]
[406525561,1771911040257,-500.0,0.00014146,2]
[406525562,1771911040266,-614.84512344,0.00014146,2]
[406525563,1771911040275,-500.0,0.00014146,2]
[406525564,1771911040284,-500.0,0.00014146,2]
[406525565,1771911040294,-500.0,0.00014146,2]
[406525566,1771911040303,-430.39158641,0.00014146,2]
[406525567,1771911040312,-500.0,0.00014146,2]
[406525568,1771911040321,-500.0,0.00014146,2]
[406525569,1771911040331,-463.87094126,0.00014146,2]
[406525570,1771911040340,-235.21227548,0.00014216,2]
[406525571,1771911040349,-1000.0,0.00014247,2]
[406525572,1771911040358,-1000.0,0.00014247,2]
[406525573,1771911040367,-599.53316827,0.00014247,2]
[406525574,1771911040376,-1000.0,0.00014247,2]
[406525575,1771911040385,-500.0,0.00014284,2]
[406525576,1771911040394,-500.0,0.00014284,2]
[406525577,1771911040403,-500.0,0.00014284,2]
[406525578,1771911040412,-532.54,0.00014284,2]
[406525579,1771911040421,-294645.768,0.00014285,2]
[406525580,1771911040431,-1205.9102,0.00014285,2]
[406525581,1771911040440,-166.66,0.00014307,2]
[406525582,1771911040449,-34716.00478995,0.00014363,2]
[406525583,1771911040458,-18299.59793956,0.00014363,2]
[406525584,1771911040467,-10357.55636516,0.0001439,2]
[406525585,1771911040476,-482.62299928,0.00014504,2]
[406525587,1771911040486,-482.62299927,0.00014504,2]
[406525589,1771911040495,-433.0,0.00014585,2]
[406525591,1771911040504,-151.0,0.00014634,2]
[406525592,1771911040513,-151.0,0.00014634,2]
[406525593,1771911040522,-151.0,0.00014634,2]
[406525594,1771911040531,-151.0,0.00014634,2]
[406525595,1771911040540,-2351.0,0.0001464,2]
[406525596,1771911040549,-912.93686295,0.00014643,2]
[406525597,1771911040560,-234.0,0.00014694,2]